Cogmind - Beta 14 @@@ ROGUE MODE // 2024.11.21 @ 19:58:39 Player: TenMicu Result: Destroyed by S-10 Pest with Light Assault Rifle Performance ------------- Evolutions (0) 0 Regions Visited (1) 200 Robots Destroyed (15) 75 Value Destroyed (236) 236 Prototype IDs (0) 0 Alien Tech Used (0) 0 Bonus (0) 0 TOTAL SCORE: 511 Bonus ------- None Cogmind --------- Core Integrity 0/250 Matter 259/300 Energy 46/100 System Corruption 0% Temperature Cool (26) Movement Treading (160) Location -10/Materials Parts ------- > --- POWER (1) -------- (None) > --- PROPULSION (2) --- Light Treads Light Treads > --- UTILITY (2) ------ Large Storage Unit Light Armor Plating > --- WEAPON (2) ------- Medium Laser Light Assault Rifle > --- INVENTORY (15) --- Aluminum Leg Aluminum Leg Heat Sink Large Storage Unit Improved Terrain Scanner Light Armor Plating Grenade Launcher Mining Claw Peak State ------------ > --- POWER ------------ Ion Engine > --- PROPULSION ------- Aluminum Leg Aluminum Leg > --- UTILITY ---------- Small Storage Unit Improved Terrain Scanner > --- WEAPON ----------- EM Pulse Gun Assault Rifle > --- INVENTORY -------- Light Ion Engine Light Treads Light Treads Aluminum Leg Wheel Compact Wheel Improved Terrain Scanner Small Laser [Rating: 10] Favorites ----------- Power Light Ion Engine Engine Light Ion Engine Propulsion Aluminum Leg Treads Light Treads Leg Aluminum Leg Utility Small Storage Unit Device Improved Terrain Scanner Storage Small Storage Unit Protection Light Armor Plating Weapon Light Assault Rifle Energy Gun EM Pulse Gun Ballistic Gun Light Assault Rifle Ballistic Cannon Light Cannon Slashing Weapon Mining Claw Build | -11 -10 ------- Run | Yrd Mat Slots Evolved . | . . Power . | . . Propulsion . | . . Utility . | . . Weapon . | . . Parts Attached 24 | 7 17 Power 3 | 1 2 Engine 3 | 1 2 Core . | . . Reactor . | . . Propulsion 8 | 2 6 Treads 2 | . 2 Leg 6 | 2 4 Wheel . | . . Hover . | . . Flight . | . . Utility 5 | 2 3 Device 1 | 1 . Storage 2 | 1 1 Processor . | . . Hackware . | . . Protection 2 | . 2 Artifact . | . . Weapon 8 | 2 6 Energy Gun 3 | 1 2 Energy Cannon . | . . Ballistic Gun 3 | 1 2 Ballistic Cannon 1 | . 1 Launcher . | . . Special Weapon . | . . Impact Weapon . | . . Slashing Weapon 1 | . 1 Piercing Weapon . | . . Special Melee Weapon . | . . Unidentified Prototypes . | . . Parts Lost 8 | . 8 Power 2 | . 2 Propulsion 1 | . 1 Utility 2 | . 2 Weapon 3 | . 3 Highest Loss Streak 4 | . 4 To Critical Strikes . | . . Average Slot Usage (%) 97 | . 97 Engine 12 | . 12 Leg 26 | . 26 Device 9 | . 9 Storage 14 | . 14 Protection 3 | . 3 Energy Gun 7 | . 7 Ballistic Gun 15 | . 15 Ballistic Cannon 4 | . 4 Peak Build Rating 10 | 9 10 Average Rating 8 | 5 8 On Entrance 4 | . 9 Naked Turns . | . . Heaviest Build 30 | 15 30 Greatest Support 40 | 20 40 Greatest Overweight (x) 4 | 4 2 Average Overweight (x) . | . . Largest Inventory Capacity 15 | 8 15 Average Capacity 10 | 7 10 Most Carried 10 | 7 10 Average Carried 7 | 4 7 Final Capacity 15 | 8 15 Final Carried 8 | 7 8 Class Distribution -------------------- 65% | Mutant 34% | Scavenger-Mutant Dominant Class ---------------- Mutant | -10/Materials Resources | -11 -10 ----------- Run | Yrd Mat Matter Collected 510 | 285 225 Remotely . | . . Salvage Created 394 | 127 267 Parts 23 | 4 19 Haulers Intercepted . | . . Recyclers Shooed 1 | . 1 Parts Field Recycled . | . . Retrieved Matter . | . . Parts Self-Destructed . | . . Prevented . | . . Kills | -11 -10 ------- Run | Yrd Mat Combat Hostiles Destroyed 12 | . 12 Guns 10 | . 10 Cannons 2 | . 2 Classes Destroyed 4 | 2 2 Tunneler 2 | 2 . Recycler 1 | 1 . Swarmer 8 | . 8 Grunt 4 | . 4 Best Kill Streak 6 | 3 6 Combat Bots Only 6 | . 6 Max Kills in Single Turn 2 | 2 1 Gunslinging . | . . Exploded . | . . Melee . | . . Uniques/NPCs Destroyed . | . . Combat | -11 -10 -------- Run | Yrd Mat Hostile Shots Fired 178 | . 178 Missed 45 | . 45 Damage Taken 1228 | . 1228 Core 253 | . 253 Absorbed by Shields . | . . Core Remaining (%) 100 | 100 . Volleys Fired 53 | 5 48 Largest 2 | 2 2 Hottest 70 | 60 70 Shots Fired 99 | 10 89 Gun 86 | 10 76 Cannon 13 | . 13 Launcher . | . . Special . | . . Kinetic 65 | 5 60 Thermal 20 | . 20 Explosive . | . . Electromagnetic 14 | 5 9 Robot Hit Streak 5 | 3 5 Robot Miss Streak 4 | 2 4 Penetration Max . | . . Secondary Targets 1 | . 1 Max Gunslinging Chain 1 | . 1 Shots Hit Robots 53 | 5 48 Core Hits 22 | 4 18 Critical Kills . | . . Critical Parts Destroyed . | . . Critical Strikes 3 | . 3 Burn 2 | . 2 Corrupt 1 | . 1 Melee Attacks 3 | . 3 Impact . | . . Slashing 3 | . 3 Piercing . | . . Sneak Attacks . | . . Combat Hostiles . | . . Follow-up Attacks . | . . Damage Inflicted 695 | 104 591 Guns 500 | 100 400 Cannons 160 | . 160 Explosions . | . . Melee . | . . Ramming 35 | 4 31 Kinetic 405 | 45 360 Thermal 145 | . 145 Explosive . | . . Electromagnetic 110 | 55 55 Impact . | . . Slashing . | . . Piercing . | . . Highest Corruption . | . . Average Corruption . | . . Corruption Purged . | . . Corruption Blocked . | . . Overload Shots . | . . Overflow Damage . | . . Projectiles . | . . Explosions . | . . Melee . | . . Knockbacks 4 | . 4 Impact 1 | . 1 Kinetic 2 | . 2 Secondary 1 | . 1 Self-Inflicted Damage . | . . Shots . | . . Rammed . | . . Targets Rammed 10 | 1 9 Kicked 10 | 1 9 Crushed . | . . Highest Temperature 133 | . 133 Average Temperature 44 | . 44 Received Heat Transfer 312 | . 312 Siege Activations . | . . Robots Corrupted . | . . Combat Hostiles . | . . Parts Fried 1 | . 1 Impact Corruptions . | . . Robots Melted . | . . Combat Hostiles . | . . Parts Melted 1 | . 1 Heat Transferred 544 | . 544 Parts Sabotaged . | . . Parts Stolen . | . . Parts Stripped . | . . Power Chain Reactions . | . . Alert | -11 -10 ------- Run | Yrd Mat Peak Influence 289 | 15 289 Initial 9 | . 9 Average 126 | 5 148 Maximum Alert Level 1 | . 1 Low Security (%) 70 | 100 65 Level 1 29 | . 34 Level 2 . | . . Level 3 . | . . Level 4 . | . . Level 5 . | . . High Security . | . . Max Security . | . . Squads Dispatched 2 | . 2 Investigation 1 | . 1 Extermination . | . . Reinforcement 1 | . 1 Assault . | . . Garrison . | . . Intercept . | . . Searches Triggered . | . . Construction Impeded . | . . Haulers Reinforced . | . . Active Scanning Responses . | . . Cargo Convoy Interrupts . | . . Stealth | -11 -10 --------- Run | Yrd Mat Distress Signals 1 | . 1 Communications Jammed . | . . Distress Signals . | . . Times Spotted 22 | . 22 Peak Tracking Total 5 | . 5 Tactical Retreats 3 | . 3 Traps | -11 -10 ------- Run | Yrd Mat Traps Triggered 1 | . 1 Indirectly . | . . Trap Hack Attempts . | . . Triggered . | . . Disarmed . | . . Reprogrammed . | . . Reused . | . . Traps Extracted . | . . Installed . | . . Triggered . | . . Machines | -11 -10 ---------- Run | Yrd Mat Machines Disabled . | . . Max in Single Turn . | . . Machines Repaired . | . . Machines Dismantled . | . . Machines Sabotaged . | . . Overloaded Fab Kills . | . . Hacking | -11 -10 --------- Run | Yrd Mat Machines Accessed 1 | . 1 Terminals 1 | . 1 Fabricators . | . . Repair Stations . | . . Recycling Units . | . . Scanalyzers . | . . Garrison Access . | . . Total Hacks 3 | . 3 Successful 1 | . 1 Failed 2 | . 2 Catastrophic . | . . Database Lockouts . | . . Manual . | . . Terminals 3 | . 3 Fabricators . | . . Repair Stations . | . . Recycling Units . | . . Scanalyzers . | . . Garrison Access . | . . Terminal Hacks 1 | . 1 Robot Analysis 1 | . 1 Fabricator Hacks . | . . Repair Station Hacks . | . . Recycling Unit Hacks . | . . Scanalyzer . | . . Garrison Access Hacks . | . . Unauthorized Hacks . | . . Terminals . | . . Fabricators . | . . Repair Stations . | . . Recycling Units . | . . Scanalyzers . | . . Garrison Access . | . . Data Cores Recovered . | . . Used . | . . Hacking Detections 1 | . 1 Full Trace Events . | . . Feedback Events . | . . Feedback Blocked . | . . Robot Schematics Acquired . | . . Robots Built . | . . Authchips . | . . Time . | . . Total Robot Build Rating . | . . Part Schematics Acquired . | . . Parts Built . | . . Authchips . | . . Time . | . . Total Part Build Rating . | . . Parts Repaired . | . . Time . | . . Parts Recycled . | . . Recycled Matter . | . . Retrieved Matter . | . . Retrieved Components . | . . Parts Scanalyzed . | . . Part Schematics Acquired . | . . Parts Damaged . | . . Bothacking | -11 -10 ------------ Run | Yrd Mat Used RIF Installer . | . . Robots Hacked . | . . Non-combat . | . . Combat . | . . Robot Hacks Applied . | . . Relay Couplers Released . | . . Fabnet Peak Effective % . | . . Robots Rewired . | . . Allies Hacked . | . . Hacks Repelled . | . . Allies | -11 -10 -------- Run | Yrd Mat Total Allies . | . . Largest Group . | . . Highest-Rated Group . | . . Highest-Rated Ally . | . . Total Orders . | . . Ally Attacks . | . . Total Damage . | . . Kills . | . . Allies Corrupted . | . . Allies Melted . | . . Intel | -11 -10 ------- Run | Yrd Mat Robot Analysis Total 1 | . 1 Derelict Logs Recovered . | . . Drone Launches . | . . Drone Recoveries . | . . Exploration | -11 -10 ------------- Run | Yrd Mat Turns Passed 750 | 113 637 Spaces Moved 366 | 57 309 Core 12 | 12 . Treads 1 | . 1 Legs 353 | 45 308 Wheels . | . . Hover . | . . Flight . | . . Fastest Speed 50 | 50 120 Average Speed 138 | 132 140 Slowest Speed 260 | 250 260 Overloaded Moves . | . . Propulsion Burnouts . | . . Robots Hopped . | . . Cave-ins Triggered . | . . Exploration Rate (%) 28 | 4 52 Regions Visited 1 Branch Regions . Pre-discovered Areas . | . . Known Exits Taken . | . . Unknown Exits Taken 1 | 1 . Scrap Searched . | . . Spaces Dug . | . . Terrain Destroyed . | . . Melee . | . . Projectile . | . . AOE . | . . Terrain Rammed . | . . Walls Destroyed . | . . Machines Disabled . | . . Actions | -11 -10 --------- Run | Yrd Mat Total 501 | 81 420 Wait 18 | 4 14 Move 366 | 57 309 Hop . | . . Pick Up 18 | 8 10 Fast Attach 8 | 6 2 Attach 8 | 1 7 Detach 1 | . 1 Swap 8 | . 8 Drop 9 | . 9 Fire 53 | 5 48 Melee 3 | . 3 Ram . | . . Kick 9 | . 9 Crush . | . . Escape Stasis . | . . Rewire . | . . Trap . | . . Miscellaneous . | . . Route ------- -11/Scrapyard -10/Materials (discovered 2 exits: [*Mat] / [*Min]) History --------- Turn | Location | Event 4 | -11/Scrapyard | Discovered new exit (range 16) 114 | -11/Scrapyard | Entered Materials 421 | -10/Materials | Discovered new exit (range 6) 537 | -10/Materials | Discovered new exit (range 16) 539 | -10/Materials | Core integrity fell below 50% 730 | -10/Materials | Core integrity fell below 20% 751 | -10/Materials | Destroyed by S-10 Pest with Light Assault Rifle Last Messages --------------- 00657_ Connecting with Terminal... 00674_ Kicked U-05 Engineer. 00676_ Acquired 8 matter. 00693_ K-01 Serf cleans the Fusion Modulator. 00711_ Lgt. Assault Rifle destroyed. 00712_ K-01 Serf cleans the Fusion Modulator. 00713_ S-10 Pest suffers critical hit (Burn). 00714_ S-10 Pest heat spikes uncontrollably. 00715_ S-10 Pest heat damages Lgt. Assault Rifle. 00715_ S-10 Pest overheating. 00715_ Flight Unit melted. 00715_ S-10 Pest destroyed. 00724_ Lgt. Ion Engine destroyed. 00726_ Aluminum Leg destroyed. 00728_ Lgt. Armor Plating destroyed. 00743_ S-10 Pest suffers critical hit (Burn). 00743_ S-10 Pest destroyed. 00747_ Acquired Lgt. Assault Rifle. Map ----- +----------------------------------------------------+ | ???????????????????????????# #??#####??#????? | | ???????????????????????????# #?##"""##??????? | | ???????????????????????????# ###"|||"##??#??? | | ???????????????????????????# ##"" ""#?????? | | ???????????????????????????# ## #?????? | | ???????????????????????????# ## < #??#### | | ???????????????????????????# ## #??# | | ???????????????????????????# ## #??# | | ???????????????????????????# #?# #?#?# | | ???????????????????????????? ????# #????# | | ?????????????????????? ??"?###+####### ###### "" | | ???????????????????????????# # "" | | ??????????????? ????? ?????# ^ + | | ?????????????????????????? # # "" | | ???????????????????????????# ####+######### # "" | | ???????????????????????? ??# ## #?# # "" | | ????????????? ??? ???????? # ## #?# # | | ???????????????????????????# ## #?# # | | ???????????????????######### ## #?# ##+# | | ???????????????????# # ###+######### ## # | | ???????????????????# # #??#???# ## # | | ??????????????????## """ + ######## ## # | | ???????????????????# """ # ## # | | ???????????????????# """=# ###+############ # | | ???????????????????# *%####### ! + # | | ???????????????????# """@##????# """"" T #?# # | | ???????????????????# """ #?????# """"" #?# # | | ???????? ? ## """%#?#?#?# """"" #?#=# | | ?????????? r s#????## #?#[# | | ???????? ? ## #?????######+######### # | | ???????????######?######+############ % %== = *==# | | ??????????????????# ^ %%########+# | | ??????????????????# ^ ##???? | | ???????????????#??# #????# | | ??????????????????# # ######## #?#??# ! | | ????????????#?????# # #??????# #??#?#! ! | | ????????????#?????# #! !#?#????# #????# ! | | ???????????????#??# ##! !##????#?# #?#??# | | ??????????????????# #######???????# #????##### | | ???????????????#??#% #??##???#????## ##???##### | | ??????????????????#| #?#???#??????# ##### | | ??????????????????# #????????????#! | | ??????????????????# #???????###??# | | ???????????????#??# #????????#?### | | ????????????#?????# #?#??????????# ##### | | ????????????????#?# #?????##############?#?## | | ??????????????????# #?????# #???????#?# | | ???????????????#??# ##??#?# "" ###??#????# | | ??????????# ???#??# T#????# T" ##?#??#?#?# | | ??????????# ????# ####### "" ########### | +----------------------------------------------------+ Best States ------------- Heat Dissipation 25 Energy Generation 10 Energy Capacity 250 Matter Stores 300 Matter Capacity 300 Sight Range 16 Terrain Scan Range 16 Terrain Scan Density 10 Armor Coverage 150 Evasion (%) 55 Recoil Reduction 2 Item Schematics ----------------- None Robot Schematics ------------------ None Fabricated ------------ Nothing Alien Tech Used ----------------- None Achievements -------------- None Challenges ------------ None Game ------ Seed TripodPlasmaThrower Manual? 0 Play Time 00:11:09 Cumulative 7.2 hours Start 2024.11.21 @ 19:23:28 End 2024.11.21 @ 19:58:39 Sessions 1 Manual Loads 0 Difficulty Rogue Special Mode None Game No. 6 Rogue 6 Adventurer 0 Explorer 0 Win Type - Total 0 Types 0/0/0/0/0/0/0/0/0 Lore% 4 Gallery% 17 Achievement% 14 Wizard Run 0 Options --------- Layout 1 ASCII 0 Keyboard 0 Movement Numpad Keybinds 0 Fullscreen 1 Font 24/Terminus Map View 50x35 Zoom Use 0% Tactical HUD 1 Map Filters NONE Filters NONE Steam 1 RUN: 6d679915-dca7-4a32-be54-36ad3431afcc